bitfinex/quotes_ETHUSD_20260213
["timestamp","ask_amount","ask_price","bid_price","bid_amount"]
[1770973861992,0.47948754,1961.7,1961.1,0.001]
[1770973863406,0.47948754,1961.5,1961.1,0.001]
[1770973863706,0.47948754,1961.4,1961.1,0.001]
[1770973865285,2.98957249,1961.5,1961.1,0.001]
[1770973865492,1.7540083,1961.6,1961.1,0.001]
[1770973865693,2.99047359,1961.6,1961.1,0.001]
[1770973865892,0.47948754,1961.8,1961.1,0.001]
[1770973865893,1.716,1961.7,1961.1,0.47296338]
[1770973866101,0.47948754,1961.6,1961.1,0.001]
[1770973867611,0.47948754,1961.4,1961.1,0.001]
[1770973869986,1.75412792,1961.4,1961.1,0.001]
[1770973870292,1.75412792,1961.4,1961.2,0.001]
[1770973871919,0.47948754,1961.2,1961.0,0.001]
[1770973872211,1.724,1961.3,1960.8,0.001]
[1770973872414,2.99866691,1961.3,1960.8,0.001]
[1770973872891,1.724,1961.3,1960.8,0.001]
[1770973873091,2.99867018,1961.3,1960.8,0.001]
[1770973873927,0.47948754,1961.2,1960.8,0.001]
[1770973874222,1.27479475,1961.1,1960.8,0.001]
[1770973878693,1.754269,1961.2,1960.8,0.001]
[1770973881710,1.75423046,1961.2,1960.8,0.001]
[1770973881889,1.27474292,1961.2,1960.8,0.001]
[1770973882089,1.75423046,1961.2,1960.8,0.001]
[1770973882699,0.47948754,1961.1,1960.7,0.001]
[1770973882923,1.75447734,1960.8,1960.5,0.001]
[1770973883223,1.75447734,1960.8,1960.3,0.001]
[1770973883224,1.735,1960.7,1960.3,0.001]
[1770973883733,2.21448754,1960.7,1960.3,0.001]
[1770973884028,0.47948754,1960.6,1960.3,0.001]
[1770973884927,1.735,1960.7,1960.3,0.001]
[1770973885104,1.738,1960.6,1960.3,0.001]
[1770973885697,1.27496451,1960.9,1960.3,0.47296338]
[1770973885927,3.01296451,1960.9,1960.3,0.47296338]
[1770973887428,3.49245205,1960.9,1960.3,0.001]
[1770973890136,0.47948754,1960.8,1960.3,0.001]
[1770973891334,1.27505482,1960.7,1960.3,0.001]
[1770973892618,1.75514506,1960.7,1960.3,0.001]
[1770973893406,5.10005392,1960.8,1960.3,0.001]
[1770973893607,0.48009024,1960.7,1960.2,0.001]
[1770973893828,13.68416442,1960.8,1960.2,0.001]
[1770973894104,5.58014416,1960.8,1960.2,0.001]
[1770973894723,3.01879475,1961.1,1960.4,0.454926]
[1770973894937,6.43535358,1961.0,1960.4,0.454926]
[1770973895137,6.43535358,1960.8,1960.4,0.001]
[1770973895342,7.71048899,1960.6,1960.4,0.001]
[1770973895749,1.2751048,1960.7,1960.4,0.001]
[1770973896091,1.746,1960.8,1960.4,0.001]
[1770973896212,2.21779051,1960.8,1960.4,0.001]
[1770973896650,1.746,1960.8,1960.4,0.001]
[1770973898726,1.746,1960.8,1960.4,0.46874115]
[1770973900919,1.746,1960.8,1960.4,1.74393939]
[1770973902019,1.27486991,1961.0,1960.4,1.74393939]
[1770973903785,1.27486991,1961.0,1960.4,1.7439906]
[1770973904849,3.02679903,1961.1,1960.5,0.46774115]
[1770973905468,3.02679903,1961.1,1960.5,1.74289122]
[1770973905662,3.02679903,1961.1,1960.5,0.46774115]
[1770973906147,6.43505717,1961.0,1960.5,0.46774115]
[1770973906451,6.43505717,1960.8,1960.4,0.001]
[1770973906651,8.66284768,1960.8,1960.4,0.001]
[1770973908357,1.27505482,1960.7,1960.4,0.001]
[1770973909851,9.93788687,1960.8,1960.4,0.001]
[1770973910176,1.756,1960.8,1960.4,0.46874115]
[1770973910351,1.756,1960.8,1960.5,0.46774115]
[1770973910785,0.002,1961.0,1960.5,0.46774115]
[1770973911074,1.762,1961.0,1960.5,0.46774115]
[1770973911464,3.03686094,1961.0,1960.5,0.46774115]
[1770973912176,1.762,1961.0,1960.5,0.46774115]
[1770973912349,1.762,1961.0,1960.5,1.7428616]
[1770973912544,1.762,1961.0,1960.6,0.46774115]
[1770973912749,0.002,1961.0,1960.6,0.46774115]
[1770973914369,0.002,1961.0,1960.7,1.27505482]
[1770973914574,0.002,1961.0,1960.7,1.74279597]
[1770973915272,0.002,1961.0,1960.7,0.46774115]
[1770973915575,0.002,1961.0,1960.5,1.74287254]
[1770973917083,6.90884768,1961.0,1960.4,1.27621536]
[1770973917388,6.43505717,1960.8,1960.4,1.27621536]
[1770973917565,0.47179051,1960.9,1960.4,0.001]
[1770973917772,6.43505717,1960.9,1960.4,0.001]
[1770973918357,0.47179051,1960.8,1960.4,0.001]
[1770973918558,6.43505717,1960.9,1960.4,0.001]
[1770973918782,6.43705717,1960.9,1960.4,0.001]
[1770973920053,7.71202722,1960.9,1960.4,0.001]
[1770973920579,7.71202722,1960.9,1960.4,0.49803466]
[1770973920779,0.002,1960.9,1960.4,0.49803466]
[1770973920986,0.002,1960.9,1960.5,0.49703466]
[1770973921287,1.27693645,1960.9,1960.5,0.49703466]
[1770973921580,1.27693645,1960.9,1960.4,0.001]
[1770973921992,0.002,1960.9,1960.4,0.001]
[1770973922194,6.71397112,1961.0,1960.4,0.001]
[1770973922362,1.27491395,1961.0,1960.4,0.001]
[1770973923791,1.27491395,1961.0,1960.4,0.49803466]
[1770973924390,1.27491395,1961.0,1960.4,1.77324859]
[1770973925088,1.75478364,1961.0,1960.4,1.77327143]
[1770973925489,1.2768462,1961.1,1960.4,1.77327143]
[1770973925660,1.2768462,1961.1,1960.5,0.49703466]
[1770973925986,1.75671589,1961.1,1960.4,1.77327143]
[1770973926564,0.002,1961.1,1960.5,0.49703466]
[1770973927285,0.002,1961.1,1960.6,6.43505717]
[1770973927508,0.002,1961.1,1960.9,0.49703466]
[1770973928491,0.002,1961.1,1961.0,1.77189442]
[1770973928994,1.27440485,1961.7,1961.0,1.77189442]
[1770973929488,0.002,1961.8,1961.2,0.49703466]
[1770973929664,0.002,1961.8,1961.3,6.93209183]
[1770973929859,0.002,1961.8,1961.3,0.49703466]
[1770973930187,0.002,1961.8,1961.4,6.43505717]
[1770973930390,0.002,1961.8,1961.5,0.49703466]
[1770973930589,0.002,1962.0,1961.7,0.49703466]
[1770973932091,0.002,1961.9,1961.7,0.49703466]
[1770973932292,0.002,1962.1,1961.7,0.49703466]
[1770973932791,0.002,1962.1,1961.8,1.27433989]
[1770973933181,0.002,1962.1,1961.6,1.836]
[1770973933583,0.48186969,1962.1,1961.4,1.27455627]
[1770973933779,0.48186969,1962.1,1961.4,3.11455627]
[1770973934891,1.27420998,1962.0,1961.4,1.27455627]
[1770973935083,0.48186969,1962.1,1961.4,1.77159093]
[1770973935285,0.002,1962.1,1961.5,0.49703466]
[1770973935490,0.002,1962.4,1961.7,0.49703466]
[1770973935891,1.27595575,1962.4,1961.7,1.839]
[1770973936095,1.74627325,1962.4,1961.7,1.839]
[1770973936498,0.002,1962.6,1961.8,0.49703466]
[1770973936872,0.002,1962.6,1962.0,0.49703466]
[1770973938003,0.002,1962.6,1962.2,0.49703466]
[1770973938297,0.002,1962.8,1962.3,0.49703466]
[1770973939398,0.002,1962.8,1962.4,1.27395026]
[1770973940318,0.002,1962.8,1962.4,1.77098492]
[1770973941593,0.002,1962.8,1962.2,1.27401838]
[1770973941797,0.002,1962.8,1962.2,1.84]
[1770973942191,0.002,1962.8,1962.1,3.11309529]
[1770973942396,0.002,1962.8,1962.1,3.61012995]
[1770973943493,0.002,1962.7,1962.1,3.61012995]
[1770973943897,0.002,1962.7,1962.0,1.27420998]
[1770973944101,0.002,1962.7,1962.0,3.11420998]
[1770973944305,0.002,1962.7,1962.0,1.27420998]
[1770973944687,0.002,1962.7,1961.4,5.09826256]
[1770973944688,0.47986969,1962.6,1961.4,5.09826256]
[1770973944902,0.47986969,1962.6,1961.5,1.84]
[1770973945301,0.47986969,1962.4,1961.2,5.09876902]
[1770973945632,0.47986969,1962.6,1961.4,0.49703466]
[1770973945914,1.75375504,1962.5,1961.5,1.77156945]
[1770973946085,0.47986969,1962.4,1961.5,1.77156945]
[1770973947897,1.27401518,1962.3,1961.5,1.77156945]
[1770973948823,1.75387219,1962.4,1961.5,1.77156945]
[1770973950214,5.09567326,1962.5,1961.6,0.49703466]
[1770973950215,1.27392715,1962.5,1961.6,0.49703466]
[1770973950789,0.45509466,1962.4,1961.4,1.27459977]
[1770973951205,0.45509466,1962.4,1961.4,1.72951152]
[1770973951497,0.45509466,1962.4,1961.5,0.45491175]
[1770973952219,0.45509466,1962.2,1961.5,1.27448404]
[1770973952453,1.72909371,1962.4,1961.6,0.45491175]
[1770973952592,0.45509466,1962.3,1961.5,1.27448404]
[1770973952795,0.45509466,1962.3,1961.4,1.2745559]
[1770973954226,0.45509466,1962.1,1961.3,3.11466279]
[1770973954801,0.45509466,1962.1,1961.3,1.72957454]
[1770973955225,0.45509466,1962.1,1961.2,3.11169753]
[1770973955410,0.45509466,1962.1,1961.5,0.001]
[1770973956228,1.27420998,1962.0,1961.5,0.001]
[1770973956429,0.45850741,1961.9,1961.5,0.001]
[1770973956829,0.45850741,1961.9,1960.8,1.2749898]
[1770973957131,0.45850741,1961.7,1960.7,1.75672452]
[1770973957435,0.45850741,1961.6,1960.7,1.2750129]
[1770973957839,0.45850741,1961.6,1960.6,1.836]
[1770973958535,0.45850741,1961.4,1960.6,1.836]
[1770973959122,0.45850741,1961.4,1960.6,0.001]
[1770973959529,0.45850741,1961.4,1960.6,1.27610191]
[1770973959727,1.73302469,1961.6,1960.7,0.48171162]
[1770973960655,1.73302469,1961.6,1960.8,1.2749898]
[1770973960827,1.27444016,1961.7,1960.9,0.48171162]
[1770973961028,0.45850741,1961.6,1960.8,1.2749898]
[1770973962653,1.27453479,1961.5,1960.8,1.2749898]
[1770973963730,1.73301988,1961.6,1960.8,1.2749898]
[1770973964463,1.73301988,1961.6,1960.8,3.7949898]
[1770973964643,1.73301988,1961.6,1960.8,4.27670142]
[1770973964844,5.09774172,1961.7,1960.9,0.48171162]
[1770973965864,5.55624913,1961.7,1960.9,0.48171162]
[1770973966846,1.27453479,1961.5,1960.8,3.7949898]
[1770973967060,1.7330422,1961.5,1960.8,3.7949898]
[1770973967550,1.7330422,1961.5,1961.0,0.001]
[1770973972152,1.733044,1961.5,1961.0,0.001]
[1770973973844,1.27453659,1961.5,1961.0,0.001]
[1770973974049,0.45850741,1961.4,1961.0,0.001]
[1770973974264,1.27466476,1961.3,1961.0,0.001]
[1770973975978,1.27458375,1961.5,1961.0,0.001]
[1770973977566,0.45850741,1961.4,1961.0,0.001]
[1770973978978,1.73313473,1961.4,1961.0,0.001]
[1770973980386,1.73313473,1961.4,1961.1,0.001]
[1770973980571,1.73513473,1961.4,1961.1,0.001]
[1770973980974,0.45830406,1961.3,1960.9,0.001]
[1770973982573,1.27662732,1961.4,1960.9,0.001]
[1770973982752,1.73493138,1961.4,1960.9,0.001]
[1770973983180,0.45830406,1961.3,1960.9,0.001]
[1770973984575,1.27662732,1961.4,1960.9,0.001]
[1770973985456,1.73493138,1961.4,1960.9,0.001]
[1770973985903,0.45830406,1961.3,1960.9,0.001]
[1770973986084,2.21430406,1961.3,1960.9,0.001]
[1770973986287,0.45830406,1961.2,1960.9,0.001]
[1770973986463,0.45830406,1961.2,1960.6,0.001]
[1770973986787,1.56006452,1961.1,1960.6,0.001]
[1770973986997,1.56024695,1961.0,1960.6,0.001]
[1770973987310,1.56024695,1961.0,1960.5,0.001]
[1770973987311,3.49022883,1960.9,1960.5,0.001]
[1770973987590,0.45830406,1960.8,1960.4,0.001]
[1770973987772,3.03192477,1960.9,1960.2,0.001]
[1770973987773,0.45830406,1960.6,1960.2,0.001]
[1770973989264,1.73347866,1960.6,1960.2,0.001]
[1770973989465,0.45830406,1960.6,1960.2,0.001]
[1770973989691,5.100048,1960.8,1960.2,0.001]
[1770973990266,1.2749898,1960.8,1960.2,0.001]
[1770973990467,3.0349898,1960.8,1960.2,0.48543416]
[1770973990892,3.49329386,1960.8,1960.2,0.001]
[1770973991095,0.45830406,1960.7,1960.2,0.001]
[1770973991305,0.45830406,1960.5,1960.2,0.001]
[1770973992291,0.45830406,1960.5,1960.0,0.001]
[1770973992466,0.45830406,1960.5,1960.3,0.001]
[1770973992671,0.45830406,1960.5,1960.0,0.001]
[1770973992867,0.45830406,1960.3,1960.0,0.001]
[1770973993068,0.45830406,1960.3,1960.2,0.001]
[1770973993273,1.27538006,1960.2,1959.8,0.001]
[1770973997276,0.45830406,1960.1,1959.8,0.001]
[1770973997476,8.56246976,1960.1,1959.6,0.001]
[1770973997676,2.22630406,1960.0,1959.6,0.001]
[1770973999104,0.45830406,1959.9,1959.6,0.001]
[1770973999414,1.27564037,1959.8,1959.5,0.001]
[1770973999903,0.45830406,1959.7,1959.0,0.48443416]
[1770974001115,0.45830406,1959.7,1958.9,1.529]
[1770974001515,1.27577056,1959.6,1958.9,1.529]
[1770974001719,3.50207462,1959.6,1958.9,0.919]
[1770974001920,0.45830406,1959.5,1958.9,0.919]
[1770974002118,0.45830406,1959.5,1958.6,0.48443416]
[1770974002806,0.45830406,1959.5,1958.6,1.76085071]
[1770974003383,1.27590078,1959.4,1958.7,0.48443416]
[1770974004194,0.45830406,1959.3,1958.5,0.53548396]
[1770974004580,0.45830406,1959.3,1958.5,0.48443416]
[1770974005604,1.73433509,1959.2,1958.5,0.48443416]
[1770974005797,3.50233509,1959.2,1958.8,0.001]
[1770974006122,3.50233509,1959.2,1958.3,0.0510498]
[1770974006123,0.45830406,1959.1,1958.3,0.48443416]
[1770974006325,3.04403103,1959.2,1957.2,0.48443416]
[1770974006326,0.45830406,1958.4,1957.2,0.48443416]
[1770974006490,8.1041657,1958.2,1957.2,0.48443416]
[1770974006687,0.45830406,1958.2,1957.2,0.48443416]
[1770974007424,8.56246976,1958.0,1957.9,0.001]
[1770974007587,1.73518234,1957.9,1957.0,0.48443416]
[1770974007787,8.1041657,1957.7,1956.8,0.48443416]
[1770974008018,2.22630406,1957.8,1956.8,0.48443416]
[1770974008686,1.27687828,1957.9,1956.9,0.48443416]
[1770974009746,5.56581721,1958.0,1956.9,0.48443416]
[1770974009947,13.66998291,1958.0,1956.9,0.48443416]
[1770974010119,0.45830406,1957.9,1956.9,0.48443416]
[1770974011019,13.0409013,1957.8,1956.9,0.48443416]
[1770974011218,1.77,1957.7,1956.9,0.48443416]
[1770974011655,1.27707396,1957.6,1956.9,0.48443416]
[1770974012355,1.27707396,1957.6,1956.7,0.49786058]
[1770974015218,1.27707396,1957.6,1956.8,0.46342897]
[1770974017130,1.27707396,1957.6,1956.9,0.46342897]
[1770974018644,5.10829587,1957.7,1956.9,0.46342897]
[1770974020565,0.05105255,1957.6,1956.9,0.46342897]
[1770974022071,0.51064487,1957.6,1956.8,0.001]
[1770974022487,8.56375802,1957.4,1956.8,0.001]
[1770974022658,1.27733496,1957.2,1956.8,0.001]
[1770974023156,1.73692728,1957.2,1956.7,0.001]
[1770974024088,8.82103794,1957.1,1955.9,0.001]
[1770974024380,0.45959232,1956.9,1955.9,1.74260647]
[1770974024747,1.27759607,1956.8,1955.9,1.74260647]
[1770974025045,1.73718839,1956.8,1955.9,1.74260647]
[1770974025775,1.73718839,1956.8,1955.9,0.46442897]
[1770974025980,1.73718839,1956.8,1955.9,1.74260866]
[1770974026170,1.73718839,1956.8,1956.0,0.46342897]
[1770974026673,0.45959232,1956.7,1955.9,0.001]
[1770974027349,1.771,1956.6,1955.9,0.001]
[1770974027554,2.23059232,1956.6,1955.9,0.001]
[1770974028076,1.771,1956.6,1955.9,0.46442897]
[1770974028278,1.771,1956.6,1955.9,0.001]
[1770974028479,0.45959232,1956.5,1955.7,0.33162897]
[1770974028679,1.27785728,1956.4,1955.7,1.60994343]
[1770974028853,9.28063026,1956.3,1955.4,0.46342897]
[1770974029064,1.771,1956.3,1955.4,0.46342897]
[1770974029564,5.11099789,1956.6,1955.5,0.46342897]
[1770974029883,1.27764635,1956.8,1955.6,0.46342897]
[1770974030454,1.32861032,1956.9,1955.6,0.46342897]
[1770974030881,1.32861032,1956.9,1955.8,0.46342897]
[1770974031384,1.77,1957.3,1955.9,0.46342897]
[1770974031565,1.32830329,1957.4,1956.2,0.46342897]
[1770974031765,1.32830329,1957.4,1956.4,0.46342897]
[1770974031965,1.78789561,1957.4,1956.4,0.46342897]
[1770974032176,0.45959232,1957.2,1956.0,0.46342897]
[1770974032352,0.51064487,1957.1,1956.0,0.46342897]
[1770974032859,1.2774655,1957.0,1956.1,1.27805326]
[1770974033059,0.05105255,1956.9,1956.1,1.74148223]
[1770974034381,1.32851805,1957.0,1956.2,0.46342897]
[1770974034992,0.05105255,1957.0,1956.3,1.2779226]
[1770974035162,1.27746829,1957.0,1956.3,1.74135157]
[1770974035667,3.09842964,1957.2,1956.4,0.46342897]
[1770974035984,3.04737709,1957.2,1956.4,0.46342897]
[1770974037092,1.27737709,1957.2,1956.5,1.74122094]
[1770974038384,1.27737709,1957.2,1956.5,1.27779197]
[1770974040499,1.27737709,1957.2,1956.5,1.74122094]
[1770974041298,1.32850008,1957.1,1956.5,1.74122094]
[1770974041701,0.05105255,1957.2,1956.6,0.46915292]
[1770974041999,0.05105255,1957.4,1956.6,0.46915292]
[1770974043174,0.05105255,1957.4,1956.7,1.27766136]
[1770974043379,2.24919175,1957.5,1956.8,0.46915292]
[1770974043989,7.35999924,1957.6,1956.8,0.46915292]
[1770974043990,0.05105255,1957.6,1956.8,0.46915292]
[1770974044190,3.04598259,1957.8,1956.8,0.46915292]
[1770974044503,0.05105255,1957.7,1956.8,0.46915292]
[1770974044875,0.002,1957.0,1956.8,0.46915292]
[1770974045070,3.09703514,1957.8,1956.8,0.46915292]
[1770974045276,0.002,1957.1,1957.0,1.74661842]
[1770974045478,3.045956,1957.8,1957.1,0.46915292]
[1770974045987,3.09700855,1957.8,1957.1,0.46915292]
[1770974046406,0.002,1957.8,1957.2,8.82103794]
[1770974046698,0.002,1957.8,1957.3,0.46915292]
[1770974047274,0.002,1957.8,1957.3,1.74636157]
[1770974047793,0.002,1957.8,1957.4,0.46915292]
[1770974048175,0.002,1957.8,1957.5,0.46915292]
[1770974049372,0.002,1957.8,1957.6,1.74622688]
[1770974049577,0.002,1957.8,1957.4,0.46915292]
[1770974049907,0.002,1957.8,1957.4,2.25415292]
[1770974051404,0.002,1957.8,1957.5,1.2771392]
[1770974051705,0.002,1957.8,1957.4,3.06415149]
[1770974052101,0.002,1957.8,1957.4,1.27715149]
[1770974052289,0.002,1957.8,1957.4,3.06515149]
[1770974052487,0.53560795,1957.8,1956.8,5.11024577]
[1770974052805,0.53560795,1957.8,1956.9,0.46915292]
[1770974053403,1.81257918,1957.8,1957.0,1.2774655]
[1770974053612,0.4825554,1957.7,1957.0,1.2774655]
[1770974054708,0.05305255,1957.8,1957.0,1.74661842]
[1770974054909,0.002,1957.8,1957.1,0.46915292]
[1770974055108,1.76150563,1957.8,1957.0,1.2774655]
[1770974055291,1.81255909,1957.8,1957.0,1.2774655]
[1770974055492,1.81255909,1957.8,1957.0,1.74661842]
[1770974055701,0.4825554,1957.7,1957.0,1.2774655]
[1770974057215,0.4845554,1957.7,1957.0,1.2774655]
[1770974057383,1.76159013,1957.7,1957.0,1.2774655]
[1770974058010,1.76156504,1957.7,1957.0,1.2774655]
[1770974058392,0.4825554,1957.6,1956.9,1.27847892]
[1770974059310,0.4825554,1957.6,1956.9,1.27852896]
[1770974059514,1.7596946,1957.5,1956.9,0.001]
[1770974061916,0.4825554,1957.4,1956.9,0.001]
[1770974062413,1.81073276,1957.6,1956.9,0.001]
[1770974062592,0.4825554,1957.5,1956.9,0.001]
[1770974062918,8.82103794,1957.5,1956.9,0.001]
[1770974063087,0.4825554,1957.4,1956.9,0.001]
[1770974063601,0.4825554,1957.2,1956.9,0.001]
[1770974063918,1.759,1957.6,1956.9,0.47015292]
[1770974064120,0.05105255,1957.5,1956.9,0.47015292]
[1770974065321,0.05305255,1957.7,1956.9,0.47015292]
[1770974065522,0.05305255,1957.7,1957.0,1.2774655]
[1770974066201,1.81261723,1957.7,1957.0,1.2774655]
[1770974066404,1.33006183,1957.7,1957.0,1.2774655]
[1770974066823,1.81261723,1957.7,1957.0,1.2774655]
[1770974067220,0.53560795,1957.7,1957.0,1.74661842]
[1770974067419,0.05305255,1957.7,1957.0,1.74661842]
[1770974067725,0.05305255,1957.7,1957.1,0.46915292]
[1770974068095,1.81262937,1957.7,1957.0,1.2774655]
[1770974068927,0.53560795,1957.7,1957.0,1.2774655]
[1770974069319,0.002,1957.7,1957.1,0.46915292]
[1770974069806,0.002,1957.7,1957.2,1.27733496]
[1770974070327,0.002,1957.6,1957.1,1.27739007]
[1770974070627,0.4845554,1957.6,1957.1,1.27739007]
[1770974072427,0.4845554,1957.6,1957.0,5.11084964]
[1770974072828,0.002,1957.6,1957.0,5.11084964]
[1770974073143,0.002,1957.6,1957.1,0.45396633]
[1770974074212,0.002,1957.6,1957.0,6.89384964]
[1770974074950,0.002,1957.6,1957.0,7.34781597]
[1770974077411,0.002,1957.6,1957.1,0.46419395]
[1770974078340,0.002,1957.6,1957.0,3.0614655]
[1770974078647,0.002,1957.6,1957.0,3.52565945]
[1770974080363,0.002,1957.6,1957.1,0.46419395]
[1770974081973,0.002,1957.6,1957.1,1.27734931]
[1770974083298,0.45064641,1957.5,1957.0,1.784]
[1770974083432,0.45064641,1957.5,1956.9,0.001]
[1770974083433,0.45064641,1957.2,1956.3,1.27785728]
[1770974083636,0.45064641,1957.0,1956.3,1.27785728]
[1770974083946,1.72811928,1957.0,1956.3,1.27785728]
[1770974084651,3.09216469,1957.2,1957.1,0.001]
[1770974084983,2.83081398,1957.2,1956.4,0.46419395]
[1770974085184,1.10279073,1957.1,1957.0,0.001]
[1770974085352,0.45064641,1957.4,1957.0,0.001]
[1770974085353,1.77894952,1957.4,1957.0,0.001]
[1770974085677,1.10218641,1957.3,1957.0,0.001]
[1770974085879,1.77894952,1957.4,1957.0,0.001]
[1770974086375,0.05105255,1957.4,1957.0,0.001]
[1770974086607,1.78088722,1957.5,1957.0,0.001]
[1770974088393,0.45064641,1957.4,1957.0,0.001]
[1770974092695,1.72785257,1957.4,1957.0,0.001]
[1770974093398,1.27720616,1957.4,1957.0,0.001]
[1770974093897,1.33024373,1957.5,1957.0,0.001]
[1770974094803,1.78089014,1957.5,1957.0,0.001]
[1770974095006,1.10200815,1957.4,1957.0,0.001]
[1770974095171,1.78089014,1957.5,1957.0,0.001]
[1770974095371,1.10196485,1957.4,1957.0,0.001]
[1770974095593,1.78089014,1957.5,1957.0,0.001]
[1770974095782,1.10196464,1957.4,1957.0,0.001]
[1770974096086,1.78089014,1957.5,1957.0,0.001]
[1770974096280,1.10196417,1957.4,1957.0,0.001]
[1770974096500,0.45064641,1957.4,1957.0,0.001]
[1770974097284,0.05105255,1957.3,1957.1,0.001]
[1770974097607,1.77896167,1957.4,1957.1,0.001]
[1770974099013,0.05105255,1957.4,1957.1,0.001]
[1770974099392,1.32826275,1957.4,1957.1,0.001]
[1770974100697,1.56076155,1957.3,1957.0,0.001]
[1770974101017,0.45892297,1957.3,1957.0,0.001]
[1770974101318,0.50997552,1957.2,1957.0,0.001]
[1770974101816,1.27740023,1957.1,1957.0,0.001]
[1770974102373,1.787361,1957.2,1957.0,0.001]
[1770974102600,1.27916813,1957.5,1957.0,0.001]
[1770974102905,1.15264018,1957.4,1957.0,0.001]
[1770974103106,0.002,1957.5,1957.0,0.001]
[1770974103407,1.27914288,1957.5,1957.0,0.001]
[1770974104609,1.27914288,1957.5,1957.0,1.2784655]
[1770974105314,1.27914288,1957.5,1957.0,0.001]
[1770974105517,0.002,1957.5,1957.0,0.4535329]
[1770974106925,0.51197552,1957.5,1957.0,0.001]
[1770974107220,0.46092297,1957.5,1957.0,1.27846488]
[1770974108030,0.002,1957.5,1957.0,1.27846488]
[1770974108188,0.002,1957.5,1957.1,0.4525329]
[1770974109107,0.002,1957.5,1957.2,1.27733496]
[1770974109530,0.002,1957.5,1957.2,1.72986786]
[1770974110131,0.002,1957.4,1957.2,1.72986786]
[1770974110543,0.002,1957.4,1957.2,1.27733496]
[1770974113544,0.002,1957.4,1957.2,1.72986786]
[1770974114251,0.002,1957.4,1957.2,1.27733496]
[1770974115153,0.002,1957.4,1957.1,1.27835148]
[1770974116847,0.002,1957.4,1957.1,0.001]
[1770974121752,0.46092297,1957.4,1957.1,0.001]
[1770974123225,1.73815056,1957.4,1957.1,0.001]
[1770974123431,0.002,1957.4,1957.1,0.001]
[1770974125245,0.002,1957.4,1957.1,1.27840023]
[1770974127342,0.002,1957.4,1957.1,1.73093313]
[1770974127657,0.002,1957.4,1957.2,0.4525329]
[1770974127956,0.002,1957.7,1957.2,0.4525329]
[1770974128540,0.004,1957.7,1957.2,0.4525329]
[1770974128940,0.002,1957.7,1957.2,0.4525329]
[1770974129343,0.002,1957.7,1957.4,0.4525329]
[1770974131453,0.002,1957.7,1957.5,1.2771392]
[1770974132251,0.004,1957.7,1957.5,1.2771392]
[1770974132453,0.002,1957.6,1957.4,5.10855683]
[1770974134477,0.002,1957.6,1957.4,0.47606515]
[1770974135581,0.004,1957.6,1957.3,1.27720445]
[1770974135777,0.004,1957.6,1957.4,1.793]
[1770974136157,0.002,1957.6,1957.4,1.793]
[1770974136359,0.002,1957.5,1957.4,1.793]
[1770974136580,0.002,1957.6,1957.4,1.793]
[1770974136784,0.002,1957.5,1957.4,1.793]
[1770974137160,0.002,1957.5,1957.4,3.07020445]
[1770974137368,0.002,1957.7,1957.4,3.52199032]
[1770974137682,1.87627416,1958.2,1957.4,3.52199032]
[1770974137683,0.49895534,1958.2,1957.4,3.07020445]
[1770974137987,0.49895534,1958.0,1957.4,3.07020445]
[1770974140580,1.27679059,1958.1,1957.4,3.07020445]
[1770974140781,1.82673629,1958.2,1957.4,3.52199032]
[1770974141000,1.77568374,1958.2,1957.4,3.52199032]
[1770974142111,0.55000789,1958.1,1957.4,3.52199032]
[1770974142306,0.49895534,1958.1,1957.4,3.52199032]
[1770974142606,1.77760188,1958.3,1957.5,0.45178587]
[1770974142821,0.49895534,1958.1,1957.4,3.07020445]
[1770974143011,0.55000789,1958.1,1957.4,3.07020445]
[1770974143683,0.55000789,1958.1,1957.4,1.793]
[1770974143884,0.55000789,1958.1,1957.4,3.07019954]
[1770974144081,0.55000789,1958.1,1957.4,1.793]
[1770974144284,0.55000789,1958.1,1957.4,3.07018864]
[1770974144513,0.49895534,1958.0,1957.4,3.07018864]
[1770974144796,1.77569644,1958.2,1957.4,3.52197451]
[1770974145024,1.10143193,1958.1,1957.4,3.52197451]
[1770974145311,1.2767411,1958.2,1957.4,3.52197451]
[1770974145512,1.10142077,1958.1,1957.4,3.52197451]
[1770974145706,1.77569644,1958.2,1957.4,3.52197451]
[1770974145907,1.10143461,1958.1,1957.4,3.52197451]
[1770974146211,1.10145515,1958.0,1957.4,2.24478587]
[1770974146414,0.55000789,1958.1,1957.4,3.0701959]
[1770974146619,1.10150277,1958.0,1957.5,0.001]
[1770974146819,1.82681506,1958.1,1957.5,0.001]
[1770974147005,1.10352347,1958.0,1957.5,0.001]
[1770974147196,0.50095534,1958.0,1957.5,0.001]
[1770974147795,1.60053036,1957.9,1957.5,0.001]
[1770974148025,0.49895534,1957.9,1957.5,0.001]
[1770974148624,1.2769435,1957.8,1957.5,0.001]
[1770974148821,1.77588733,1957.9,1957.5,0.001]
[1770974149122,1.60062086,1957.8,1957.5,0.001]
[1770974149429,0.49895534,1957.6,1957.2,0.001]
[1770974150322,6.95476933,1957.5,1957.2,0.001]
[1770974151215,8.23191494,1957.5,1957.2,0.001]
[1770974151418,6.95476933,1957.5,1957.2,0.001]
[1770974151728,8.23191811,1957.5,1957.2,0.001]
[1770974152224,6.95476933,1957.5,1957.2,0.001]
[1770974152423,6.95476933,1957.7,1957.2,0.001]
[1770974152624,1.10173511,1957.6,1957.2,0.001]
[1770974152798,1.27707588,1957.6,1957.2,0.001]
[1770974152994,8.28287523,1957.7,1957.2,0.001]
[1770974153201,1.10173882,1957.6,1957.2,0.001]
[1770974153395,8.28287523,1957.7,1957.2,0.001]
[1770974153629,1.10188058,1957.6,1957.2,0.001]
[1770974153827,8.28287523,1957.7,1957.2,0.001]
[1770974154027,1.10188051,1957.6,1957.2,0.001]
[1770974154228,8.28287523,1957.7,1957.2,0.001]
[1770974154411,1.10202046,1957.6,1957.2,0.001]
[1770974154613,8.28287523,1957.7,1957.2,0.001]
[1770974154809,1.10203717,1957.6,1957.2,0.001]
[1770974155032,8.28287523,1957.7,1957.2,0.001]